bitfinex-derivatives/quotes_BTCF0:USTF0_20251229
["timestamp","ask_amount","ask_price","bid_price","bid_amount"]
[1767038514115,0.00017166,87416.0,87390.0,0.00017166]
[1767038514421,0.00017166,87416.0,87399.0,0.0114551]
[1767038514926,0.00017166,87416.0,87396.0,0.0114556]
[1767038515110,0.00017166,87416.0,87390.0,0.00017166]
[1767038515510,0.00017166,87416.0,87402.0,0.0114548]
[1767038515715,0.00017166,87416.0,87392.0,0.0114561]
[1767038515917,0.00017166,87416.0,87405.0,0.0114544]
[1767038516315,0.00017166,87416.0,87397.0,0.09736]
[1767038516316,0.00017166,87416.0,87397.0,0.1088155]
[1767038516618,0.00017166,87416.0,87390.0,0.00017166]
[1767038516815,0.0114537,87411.0,87390.0,0.00017166]
[1767038517428,0.05736,87410.0,87390.0,0.00017166]
[1767038517913,0.0114558,87395.0,87380.0,0.09736]
[1767038518114,0.0114558,87395.0,87378.0,0.09736]
[1767038519030,0.00017166,87395.0,87378.0,0.09753166]
[1767038519224,0.00017166,87395.0,87378.0,0.00017166]
[1767038519430,0.00017166,87395.0,87378.0,6e-08]
[1767038519613,0.0114569,87387.0,87371.0,0.09736]
[1767038519820,0.0114567,87388.0,87371.0,0.09736]
[1767038520728,0.0114567,87388.0,87371.0,0.09753166]
[1767038522129,0.05736,87389.0,87371.0,0.00017166]
[1767038522331,0.0114571,87385.0,87371.0,0.00017166]
[1767038524427,0.0114567,87388.0,87371.0,0.00017166]
[1767038524728,0.011457,87386.0,87371.0,0.00017166]
[1767038526321,0.011457,87386.0,87366.0,0.01553166]
[1767038526528,0.0688166,87389.0,87366.0,0.01553166]
[1767038526732,0.0114569,87387.0,87366.0,0.01553166]
[1767038527421,0.0114569,87387.0,87368.0,0.00017166]
[1767038532728,0.0114571,87385.0,87368.0,0.00017166]
[1767038533128,0.0114567,87388.0,87368.0,0.00017166]
[1767038533335,0.0114567,87388.0,87366.0,0.01116282]
[1767038534630,0.0114567,87388.0,87368.0,0.0114593]
[1767038535029,0.0114567,87388.0,87365.0,0.0114596]
[1767038535229,0.0114567,87388.0,87367.0,0.0114594]
[1767038536237,0.0114567,87388.0,87369.0,0.0114591]
[1767038537240,0.05736,87389.0,87363.0,0.15472]
[1767038537637,0.0114569,87387.0,87367.0,0.0114594]
[1767038537838,0.05736,87389.0,87363.0,0.15472]
[1767038538140,0.0688166,87389.0,87367.0,0.0114593]
[1767038538538,0.0688166,87389.0,87363.0,0.15472]
[1767038538539,0.05736,87389.0,87365.0,0.0114597]
[1767038539942,0.05736,87389.0,87363.0,0.15472]
[1767038540345,0.05736,87389.0,87355.0,0.05736]
[1767038540346,0.0114589,87372.0,87355.0,0.05736]
[1767038540642,0.01163056,87372.0,87355.0,0.05736]
[1767038540842,0.01163056,87372.0,87354.0,0.06976]
[1767038541235,0.00017166,87372.0,87354.0,0.06976]
[1767038542438,0.0114598,87365.0,87350.0,1.81966344]
[1767038542645,0.0114601,87363.0,87350.0,1.81966344]
[1767038542840,0.00017166,87372.0,87350.0,1.81966344]
[1767038543147,0.0114606,87359.0,87350.0,1.81966344]
[1767038543341,0.05736,87358.0,87350.0,1.81966344]
[1767038544133,0.0114597,87365.0,87350.0,1.81966344]
[1767038544339,0.1548,87364.0,87350.0,1.81966344]
[1767038545348,0.1548,87363.0,87350.0,1.81966344]
[1767038545546,0.1548,87362.0,87350.0,1.81966344]
[1767038545749,0.0974,87361.0,87350.0,1.81966344]
[1767038547642,0.0574,87360.0,87350.0,1.81966344]
[1767038547837,0.0114593,87368.0,87350.0,1.81966344]
[1767038548157,0.0574,87367.0,87350.0,1.81966344]
[1767038548345,0.0574,87367.0,87352.0,0.0114613]
[1767038548542,0.0574,87367.0,87350.0,1.81966344]
[1767038549250,0.0574,87367.0,87351.0,0.0114615]
[1767038549450,0.0574,87367.0,87350.0,1.81966344]
[1767038551750,0.0574,87367.0,87350.0,1.83112504]
[1767038554454,0.0574,87367.0,87352.0,0.0114613]
[1767038554644,0.00017166,87372.0,87353.0,0.0574]
[1767038554954,6e-08,87372.0,87363.0,0.0114599]
[1767038555644,6e-08,87372.0,87365.0,0.0114596]
[1767038556049,6e-08,87372.0,87367.0,0.0114593]
[1767038557051,0.0574,87381.0,87369.0,0.011459]
[1767038557249,0.0114565,87390.0,87369.0,0.011459]
[1767038557458,0.0114567,87388.0,87369.0,0.011459]
[1767038558054,0.0114567,87388.0,87365.0,0.0574]
[1767038558448,0.0688563,87391.0,87370.0,0.17319719]
[1767038558653,0.0114568,87388.0,87370.0,0.17319719]
[1767038559054,0.00017166,87388.0,87370.0,0.18465609]
[1767038559349,0.00017166,87388.0,87365.0,0.0574]
[1767038559350,0.00017166,87388.0,87378.0,0.17319719]
[1767038559550,0.0974,87393.0,87380.0,0.0114577]
[1767038559746,0.0114551,87401.0,87378.0,0.17319719]
[1767038559942,0.1548,87400.0,87378.0,0.17319719]
[1767038560148,0.0974,87399.0,87375.0,0.0114584]
[1767038560348,0.0114559,87395.0,87380.0,0.17319719]
[1767038560552,0.00017166,87396.0,87380.0,0.17319719]
[1767038564959,0.01162726,87396.0,87380.0,0.17319719]
[1767038565255,0.01162726,87396.0,87380.0,0.14019719]
[1767038565459,0.01162726,87396.0,87380.0,0.17319719]
[1767038567561,0.00017166,87396.0,87380.0,0.17319719]
[1767038570363,0.01162736,87396.0,87380.0,0.17319719]
[1767038571155,0.00017166,87396.0,87380.0,0.17319719]
[1767038571359,0.0114523,87422.0,87386.0,0.17319719]
[1767038571555,0.17319719,87420.0,87400.0,0.17319719]
[1767038571866,0.17319719,87420.0,87386.0,0.0114569]
[1767038571867,0.0114539,87410.0,87390.0,0.17319719]
[1767038572069,0.0114541,87408.0,87390.0,0.17319719]
[1767038572559,0.0974,87410.0,87398.0,0.17319719]
[1767038572763,0.1548,87417.0,87402.0,0.0114548]
[1767038572962,0.0574,87417.0,87407.0,0.17319719]
[1767038573153,0.0574,87417.0,87407.0,0.14019719]
[1767038573550,0.0574,87417.0,87400.0,0.17319719]
[1767038576458,0.0574,87417.0,87397.0,0.0574]
[1767038577157,0.0114533,87415.0,87397.0,0.0574]
[1767038577660,0.0574,87417.0,87400.0,0.17319719]
[1767038577867,0.0574,87417.0,87397.0,0.0574]
[1767038577868,0.09736,87426.0,87411.0,0.0114536]
[1767038578060,0.0114506,87435.0,87410.0,0.17319719]
[1767038578262,0.0574,87425.0,87410.0,0.17319719]
[1767038578654,0.0574,87425.0,87410.0,0.18465089]
[1767038580370,0.0574,87425.0,87410.0,0.0114537]
[1767038580670,0.0574,87425.0,87410.0,0.18465089]
[1767038580970,0.0574,87425.0,87412.0,0.0114534]
[1767038581172,0.05740166,87426.0,87410.0,0.17319719]
[1767038581762,0.05740166,87426.0,87409.0,0.00017166]
[1767038582073,0.05740166,87426.0,87410.0,0.17319719]
[1767038582268,0.05740166,87426.0,87409.0,0.00017166]
[1767038582468,0.0114521,87424.0,87409.0,0.00017166]
[1767038582661,0.05740166,87426.0,87390.0,0.17319719]
[1767038582662,0.0114527,87419.0,87390.0,0.17319719]
[1767038582971,0.0114527,87419.0,87397.0,0.0114554]
[1767038583164,0.0114527,87419.0,87398.0,0.0574]
[1767038583363,0.17319719,87410.0,87398.0,0.0574]
[1767038583574,0.0574,87418.0,87398.0,0.0574]
[1767038583575,0.0574,87417.0,87398.0,0.0574]
[1767038583764,0.0574,87417.0,87399.0,0.00017166]
[1767038584869,0.0114533,87414.0,87399.0,0.00017166]
[1767038585373,0.0688529,87417.0,87399.0,0.00017166]
[1767038585565,0.09736,87416.0,87399.0,0.00017166]
[1767038585870,0.0114531,87415.0,87399.0,0.00017166]
[1767038586275,0.17319719,87410.0,87399.0,0.00017166]
[1767038586572,0.0114531,87415.0,87399.0,0.00017166]
[1767038587365,0.17319719,87410.0,87399.0,0.00017166]
[1767038587863,0.17319719,87410.0,87398.0,0.01323905]
[1767038590769,0.05736,87409.0,87395.0,0.00017166]
[1767038591176,0.0114544,87406.0,87395.0,0.00017166]
[1767038592175,0.068814,87409.0,87395.0,0.00017166]
[1767038592975,0.05736,87409.0,87395.0,0.00017166]
[1767038594770,0.05736,87409.0,87397.0,0.0114555]
[1767038595277,0.0114526,87420.0,87399.0,0.17319719]
[1767038595471,0.15472,87419.0,87399.0,0.17319719]
[1767038595672,0.1661726,87419.0,87399.0,0.0114551]
[1767038596076,0.15472,87419.0,87399.0,0.0114551]
[1767038596263,0.15472,87419.0,87395.0,0.00017166]
[1767038596264,0.15472,87419.0,87401.0,0.0114549]
[1767038596780,0.1661726,87419.0,87398.0,0.0114553]
[1767038597878,0.0114526,87419.0,87398.0,0.0114553]
[1767038598072,0.15472,87418.0,87400.0,0.0114551]
[1767038598869,0.06143919,87430.0,87400.0,0.17319719]
[1767038599074,0.06143919,87430.0,87395.0,0.00017166]
[1767038599075,0.15472,87425.0,87410.0,0.17319719]
[1767038599580,0.15472,87425.0,87403.0,0.0114546]
[1767038599971,0.15472,87425.0,87405.0,0.0114544]
[1767038600177,0.15472,87425.0,87408.0,0.0114541]
[1767038601073,0.15472,87425.0,87401.0,0.15472]
[1767038601265,0.15472,87425.0,87407.0,0.0114541]
[1767038601488,0.15472,87425.0,87409.0,0.0114539]
[1767038602068,1.66e-06,87426.0,87401.0,0.15472]
[1767038602273,0.03128,87431.0,87416.0,0.17319719]
[1767038602475,0.09736,87438.0,87420.0,0.18464959]
[1767038602676,0.09736,87438.0,87423.0,0.011452]
[1767038603180,0.09736,87438.0,87420.0,0.18464969]
[1767038603377,0.09736,87438.0,87423.0,0.011452]
[1767038603577,0.00017156,87439.0,87423.0,0.011452]
[1767038603780,0.05736,87438.0,87423.0,0.011452]
[1767038604182,0.05736,87438.0,87422.0,0.00017156]
[1767038604782,0.05736,87438.0,87423.0,0.011452]
[1767038607484,0.05736,87438.0,87420.0,0.15182075]
[1767038608080,0.00017156,87439.0,87420.0,0.15182075]
[1767038608280,0.00017156,87439.0,87425.0,0.0114517]
[1767038608487,0.00017156,87439.0,87429.0,0.17319719]
[1767038608993,0.00017156,87439.0,87424.0,0.05736]
[1767038612184,0.00097,87454.0,87429.0,0.17319719]
[1767038612484,0.05736,87453.0,87440.0,0.17319719]
[1767038612685,0.05736,87453.0,87434.0,0.0688106]
[1767038613287,0.00017156,87452.0,87440.0,0.18464689]
[1767038613485,0.00012156,87452.0,87440.0,0.18464709]
[1767038613678,0.00012156,87452.0,87442.0,0.0114495]
[1767038614189,0.00012156,87452.0,87440.0,0.17319719]
[1767038614376,0.00012156,87452.0,87441.0,0.0114497]
[1767038614578,0.00012156,87452.0,87440.0,0.15964689]
[1767038614977,0.00012156,87452.0,87443.0,0.0114494]
[1767038615281,0.00097,87454.0,87443.0,0.0114494]
[1767038615683,0.00097,87454.0,87444.0,0.17319719]
[1767038616280,0.00092,87454.0,87444.0,0.17319719]
[1767038616474,0.09732,87468.0,87444.0,0.17319719]
[1767038616475,0.06143919,87476.0,87444.0,0.17319719]
[1767038616683,0.0114469,87463.0,87442.0,0.05736]
[1767038616884,0.0114472,87461.0,87442.0,0.05736]
[1767038617290,0.05736,87463.0,87450.0,0.17319719]
[1767038618687,0.05736,87472.0,87453.0,0.17319719]
[1767038618893,0.05736,87475.0,87460.0,0.17319719]
[1767038619084,0.17319719,87470.0,87448.0,0.00017156]
[1767038619388,0.05736,87475.0,87430.0,0.17319719]
[1767038619389,0.17319719,87460.0,87430.0,0.17319719]
[1767038619592,0.17319719,87460.0,87431.0,0.15468]
[1767038619593,0.05736,87459.0,87431.0,0.15468]
[1767038619989,0.05736,87459.0,87435.0,0.0114505]
[1767038620491,0.00017156,87456.0,87438.0,0.00017156]
[1767038620692,0.00017156,87456.0,87439.0,0.05736]
[1767038621795,0.00017156,87456.0,87439.0,0.04036]
[1767038622679,0.0114489,87448.0,87426.0,0.05736]
[1767038622883,0.05736,87447.0,87426.0,0.05736]
[1767038623086,0.09732,87450.0,87426.0,0.05736]
[1767038623087,0.05736,87448.0,87426.0,0.05736]
[1767038623282,0.05736,87448.0,87428.0,0.0114513]
[1767038623488,0.05736,87448.0,87426.0,0.05736]
[1767038623686,0.05736,87448.0,87428.0,0.00017156]
[1767038624394,0.0114494,87444.0,87422.0,0.05736]
[1767038624593,0.05736,87448.0,87422.0,0.05736]
[1767038624594,0.011449,87447.0,87422.0,0.05736]
[1767038625192,0.00017156,87443.0,87426.0,0.00017156]
[1767038626399,0.00017156,87443.0,87428.0,0.00228761]
[1767038626893,0.05736,87442.0,87428.0,0.00228761]
[1767038628997,0.05736,87442.0,87422.0,0.05736]
[1767038629482,0.05736,87442.0,87428.0,0.0114514]
[1767038634303,0.00017156,87443.0,87428.0,0.0114514]
[1767038635095,0.00017156,87443.0,87426.0,0.00017156]
[1767038635293,0.09732,87460.0,87430.0,0.17295567]
[1767038635494,0.07298977,87461.0,87442.0,0.0114495]
[1767038635703,0.05736,87460.0,87442.0,0.0114495]
[1767038636406,0.05753156,87460.0,87442.0,0.01162106]
[1767038640508,0.05753156,87460.0,87442.0,0.00017156]
[1767038640905,0.06897886,87460.0,87442.0,0.00017156]
[1767038641103,0.05753156,87460.0,87442.0,0.00017156]
[1767038641499,0.06897886,87460.0,87442.0,0.00017156]
[1767038642114,0.0114476,87458.0,87442.0,0.00017156]
[1767038642302,0.05753156,87460.0,87442.0,0.00017156]
[1767038642506,0.0114474,87459.0,87442.0,0.00017156]
[1767038642708,0.00228683,87458.0,87442.0,0.00017156]
[1767038643213,0.0114477,87457.0,87435.0,0.08049156]
[1767038643714,0.01373443,87458.0,87436.0,0.0114503]
[1767038643897,0.0114478,87456.0,87435.0,0.08049156]
[1767038644102,0.0114478,87456.0,87437.0,0.00017156]
[1767038645709,0.00228683,87458.0,87437.0,0.01162176]
[1767038646206,0.00228683,87458.0,87439.0,0.0114499]
[1767038648911,0.06154257,87456.0,87439.0,0.0114499]
[1767038649120,0.06154257,87457.0,87437.0,0.00017156]
[1767038650218,0.06154257,87457.0,87442.0,0.0114496]
[1767038651615,0.06154257,87457.0,87444.0,0.0114493]
[1767038652815,0.06154257,87457.0,87441.0,0.0114496]
[1767038654917,0.06154257,87457.0,87449.0,0.0114486]
[1767038655121,0.06152982,87464.0,87446.0,0.09732]
[1767038655412,0.15468,87471.0,87447.0,0.09732]
[1767038655613,0.15468,87471.0,87455.0,0.0114478]
[1767038656014,0.08201197,87476.0,87456.0,0.0114477]
[1767038656208,0.05753156,87475.0,87458.0,0.0114475]
[1767038657812,0.00017156,87475.0,87458.0,0.0114475]
[1767038658015,0.05753156,87475.0,87458.0,0.0114475]
[1767038658414,0.05753156,87475.0,87457.0,0.00017156]
[1767038658415,0.00017156,87475.0,87460.0,0.0114472]
[1767038658718,0.00017156,87475.0,87457.0,0.10893916]
[1767038659411,0.00017156,87475.0,87457.0,0.09749156]
[1767038662218,0.00017156,87475.0,87457.0,0.08049156]
[1767038663419,0.00017156,87475.0,87457.0,0.08066312]
[1767038664124,0.01161696,87475.0,87457.0,0.00017156]
[1767038665019,0.00017156,87475.0,87457.0,0.00017156]
[1767038665725,0.00017156,87475.0,87458.0,0.0114475]
[1767038666423,0.00017156,87475.0,87457.0,0.00017156]
[1767038667519,0.00017156,87475.0,87457.0,0.01161916]
[1767038669322,0.00017156,87475.0,87457.0,0.00561916]
[1767038670522,0.00017156,87475.0,87457.0,0.00579072]
[1767038671328,0.00017156,87475.0,87459.0,0.0114474]
[1767038671521,0.00017156,87475.0,87466.0,0.0114464]
[1767038671716,0.00017156,87475.0,87457.0,0.00017156]
[1767038671921,0.00017156,87475.0,87462.0,0.0114469]
[1767038672322,0.00017156,87475.0,87464.0,0.0114467]
[1767038673520,0.00017156,87475.0,87466.0,0.0114464]
[1767038673715,0.00228604,87488.0,87472.0,0.0114456]
[1767038673923,0.0114424,87498.0,87475.0,0.0114453]
[1767038674121,0.1546,87499.0,87477.0,0.011445]
[1767038674317,0.0114395,87519.0,87474.0,0.09728]
[1767038674517,0.1546,87518.0,87474.0,0.09728]
[1767038674822,0.00017144,87505.0,87487.0,0.00017144]
[1767038675019,0.15464,87504.0,87487.0,0.00017144]
[1767038675222,0.1660815,87504.0,87487.0,0.00017144]
[1767038676233,0.15464,87504.0,87487.0,0.00017144]
[1767038676539,0.0114421,87500.0,87474.0,0.09189634]
[1767038677331,0.0114416,87503.0,87477.0,0.0114449]
[1767038677631,0.0114416,87503.0,87481.0,0.00017144]
[1767038677838,0.0114421,87500.0,87481.0,0.00017144]
[1767038678131,0.00017144,87505.0,87481.0,0.00017144]
[1767038678323,0.05749144,87505.0,87481.0,0.00017144]
[1767038678526,0.05749144,87505.0,87485.0,0.0114439]
[1767038680531,0.1546,87504.0,87485.0,0.0114439]
[1767038680731,0.1546,87504.0,87482.0,0.0114443]
[1767038681435,0.00017144,87505.0,87484.0,0.011444]
[1767038681642,0.1546,87504.0,87484.0,0.011444]
[1767038682130,0.1660415,87504.0,87481.0,0.01161584]
[1767038682537,0.0114421,87500.0,87481.0,0.00017144]
[1767038682732,0.17275517,87491.0,87471.0,0.0687657]
[1767038682933,0.17275517,87490.0,87470.0,0.0114459]
[1767038683140,0.17275517,87490.0,87463.0,0.05732]
[1767038683141,0.17275517,87490.0,87472.0,0.0114456]
[1767038683328,0.17275517,87490.0,87470.0,0.17275517]
[1767038683529,0.17275517,87490.0,87472.0,0.0114456]
[1767038683838,0.17292661,87490.0,87472.0,0.0114456]
[1767038684341,0.17292661,87490.0,87472.0,0.0114456]
[1767038685236,0.05732,87489.0,87472.0,0.0114456]
[1767038685438,0.05732,87489.0,87470.0,0.17275517]
[1767038685842,0.05732,87489.0,87468.0,0.0114461]
[1767038686232,0.0114437,87487.0,87467.0,0.09728]
[1767038686434,0.0114437,87487.0,87449.0,0.0114486]
[1767038686435,0.17275517,87477.0,87444.0,0.03083556]
[1767038686637,0.05732,87489.0,87453.0,0.0114481]
[1767038686638,0.17275517,87471.0,87453.0,0.0114481]
[1767038686833,0.17275517,87471.0,87452.0,0.09728]
[1767038689441,0.05732,87473.0,87452.0,0.09728]
[1767038689635,0.17275517,87470.0,87452.0,0.09728]
[1767038690447,0.05732,87473.0,87452.0,0.09728]
[1767038691349,0.05732,87473.0,87453.0,0.011448]
[1767038691649,0.05732,87473.0,87455.0,0.0114478]
[1767038696944,0.05732,87473.0,87452.0,0.1087282]
[1767038697346,0.05732,87473.0,87392.0,0.39505037]
[1767038697347,0.17289572,87470.0,87444.0,0.09728]
[1767038697542,0.0114471,87462.0,87439.0,0.09728]
[1767038697741,0.05732,87461.0,87438.0,0.16605]
[1767038697950,0.0114473,87460.0,87438.0,0.16605]
[1767038698152,0.18434302,87460.0,87438.0,0.1546]
[1767038698342,0.0114473,87460.0,87438.0,0.1546]
[1767038699149,0.0687672,87461.0,87438.0,0.1546]
[1767038699348,0.0114477,87457.0,87438.0,0.1546]
[1767038699553,0.0114473,87460.0,87438.0,0.1546]
[1767038704249,0.0114473,87460.0,87439.0,0.01145]
[1767038704751,0.05732,87461.0,87439.0,0.01145]
[1767038705360,0.05727,87461.0,87439.0,0.01145]
[1767038707866,0.05727,87461.0,87438.0,0.1546]
[1767038708051,0.0114477,87457.0,87438.0,0.1546]
[1767038708247,0.05727,87461.0,87438.0,0.1546]
[1767038708650,0.17289572,87460.0,87438.0,0.1346]
[1767038708861,0.0114477,87457.0,87438.0,0.1346]
[1767038710563,0.17297955,87450.0,87438.0,0.1346]
[1767038710962,0.17297955,87450.0,87430.0,0.17297955]
[1767038710963,0.3459591,87450.0,87430.0,0.05736]
[1767038711171,0.17297955,87450.0,87430.0,0.05736]
[1767038711355,0.17297955,87450.0,87430.0,0.068811]
[1767038712267,0.17297955,87450.0,87432.0,0.0114509]
[1767038713251,0.06248032,87458.0,87430.0,0.23033955]
[1767038713460,0.15468,87457.0,87440.0,0.18442935]
[1767038713660,0.09732,87456.0,87440.0,0.18442935]
[1767038714161,0.06253484,87466.0,87447.0,0.0114489]
[1767038714363,0.06253484,87466.0,87438.0,0.05736]
[1767038714364,0.15468,87465.0,87452.0,0.0114482]
[1767038714660,0.15468,87465.0,87450.0,0.17297955]
[1767038715262,0.15468,87465.0,87446.0,0.0114491]
[1767038716159,0.15468,87465.0,87450.0,0.17297955]
[1767038716661,0.1661266,87465.0,87450.0,0.17297955]
[1767038717456,0.15468,87465.0,87450.0,0.17297955]
[1767038717866,0.15468,87465.0,87449.0,0.05736]
[1767038718958,0.0114468,87464.0,87449.0,0.05736]
[1767038719461,0.15468,87465.0,87449.0,0.05736]
[1767038719660,0.15468,87465.0,87440.0,0.17297955]
[1767038719661,0.0114469,87463.0,87446.0,0.05736]
[1767038722270,0.15468,87465.0,87446.0,0.05736]
[1767038722768,0.15468,87465.0,87446.0,0.03236]
[1767038724963,0.15468,87465.0,87450.0,0.18442805]
[1767038725163,0.05736,87465.0,87452.0,0.0114482]
[1767038725564,0.05736,87465.0,87450.0,0.17297955]
[1767038725764,0.05736,87465.0,87451.0,0.0114484]
[1767038727776,0.05736,87465.0,87453.0,0.0114481]
[1767038729877,0.05736,87465.0,87453.0,0.0518081]
[1767038730174,0.05736,87465.0,87453.0,0.0632562]
[1767038730575,0.00017144,87466.0,87453.0,0.0518081]
[1767038730782,0.05736,87480.0,87467.0,0.0114462]
[1767038730971,0.09732,87483.0,87470.0,0.17297955]
[1767038731278,0.17297955,87480.0,87466.0,0.05736]
[1767038732172,0.17297955,87480.0,87465.0,0.05736]
[1767038733278,0.17297955,87480.0,87464.0,0.00017155]
[1767038733473,0.17297955,87480.0,87465.0,0.05736]
[1767038733674,0.00017155,87482.0,87464.0,0.00017155]
[1767038733872,0.00017155,87482.0,87470.0,0.17297955]
[1767038734377,0.17297955,87480.0,87464.0,0.00017155]
[1767038734777,0.00017155,87482.0,87464.0,0.00017155]
[1767038736984,0.00017155,87482.0,87462.0,0.06449155]
[1767038738378,0.00017155,87482.0,87470.0,0.17297955]
[1767038738871,0.00228604,87488.0,87470.0,0.17297955]
[1767038739088,0.08201197,87512.0,87466.0,0.05736]
[1767038739089,0.05732,87504.0,87481.0,0.0114444]
[1767038739371,0.05732,87504.0,87462.0,0.06449155]
[1767038739372,0.05732,87504.0,87490.0,0.17297955]
[1767038740173,0.05732,87504.0,87488.0,0.00017144]
[1767038740174,0.17297955,87500.0,87488.0,0.00017144]
[1767038740483,0.17297955,87500.0,87482.0,0.05732]
[1767038740484,0.0687615,87504.0,87482.0,0.05732]
[1767038740780,0.17297955,87500.0,87482.0,0.05732]
[1767038741889,0.05732,87504.0,87482.0,0.05732]
[1767038744783,0.05732,87504.0,87482.0,0.0687643]
[1767038745975,0.05732,87504.0,87480.0,0.1087245]
[1767038750784,0.00017144,87506.0,87480.0,0.09728]
[1767038751083,0.05732,87505.0,87493.0,0.0114429]
[1767038751485,0.05732,87505.0,87490.0,0.0687632]
[1767038751790,0.05732,87505.0,87490.0,0.05732]
[1767038754484,0.05732,87505.0,87490.0,0.03932]
[1767038754683,0.05732,87505.0,87491.0,0.0114431]
[1767038756789,0.05732,87505.0,87490.0,0.03932]
[1767038761491,0.05732,87505.0,87480.0,0.09728]
[1767038761492,0.0114419,87501.0,87485.0,0.05732]
[1767038761690,0.0114419,87501.0,87480.0,0.1546]
[1767038762197,0.0114421,87500.0,87480.0,0.05732]
[1767038763598,0.0114417,87503.0,87480.0,0.05732]
[1767038763893,0.0114419,87501.0,87480.0,0.05732]
[1767038765495,0.05732,87505.0,87480.0,0.05732]
[1767038765996,0.0114421,87500.0,87480.0,0.05732]
[1767038768500,0.05732,87505.0,87480.0,0.05732]
[1767038769704,0.0114416,87504.0,87480.0,0.05732]
[1767038769999,0.1546,87503.0,87490.0,0.0114433]
[1767038772203,0.1546,87503.0,87492.0,0.011443]
[1767038772399,0.1546,87503.0,87489.0,0.0114434]
[1767038773609,0.1546,87503.0,87487.0,0.05732]
[1767038773610,0.06145016,87510.0,87497.0,0.0114423]
[1767038773807,0.06145016,87511.0,87495.0,0.05732]
[1767038774116,0.05732,87512.0,87495.0,0.03732]
[1767038774691,0.05749144,87512.0,87495.0,0.03749144]
[1767038774901,0.09728,87525.0,87497.0,0.0114424]
[1767038775098,0.08201197,87529.0,87512.0,0.0114404]
[1767038775293,0.08201197,87531.0,87515.0,0.01144]
[1767038775598,0.05732,87532.0,87515.0,0.01144]
[1767038775795,0.09728,87534.0,87516.0,0.1546]
[1767038775995,0.1087176,87534.0,87517.0,0.05732]
[1767038776194,0.10888904,87534.0,87517.0,0.00017144]
[1767038776396,0.0114379,87532.0,87517.0,0.00017144]
[1767038776696,0.09745144,87534.0,87517.0,0.00017144]
[1767038777391,0.00017144,87534.0,87517.0,0.00017144]
[1767038777590,0.15456,87533.0,87517.0,0.00017144]
[1767038778303,0.0114379,87532.0,87517.0,0.00017144]
[1767038780612,0.0114381,87531.0,87517.0,0.00017144]
[1767038781016,0.15456,87533.0,87517.0,0.00017144]
[1767038781200,0.15456,87533.0,87505.0,0.03849144]
[1767038781400,0.0114382,87529.0,87505.0,0.03849144]
[1767038782109,0.0114382,87529.0,87508.0,0.00017144]
[1767038786011,0.011438,87531.0,87508.0,0.00017144]
[1767038786311,0.15456,87533.0,87508.0,0.00017144]
[1767038786498,0.0114379,87532.0,87508.0,0.01161234]
[1767038786901,0.00017144,87534.0,87509.0,0.01788678]
[1767038787111,0.00017144,87534.0,87510.0,0.01788678]
[1767038787308,0.00017144,87534.0,87509.0,0.0114408]
[1767038787497,0.00017144,87534.0,87511.0,0.0114405]
[1767038788110,0.09724,87533.0,87508.0,0.00017144]
[1767038788405,0.0687579,87532.0,87508.0,0.00017144]
[1767038789012,0.0114383,87529.0,87508.0,0.00017144]
[1767038789612,0.0114386,87527.0,87508.0,0.00017144]
[1767038789910,0.0114385,87527.0,87508.0,0.00017144]
[1767038790109,0.0114389,87524.0,87508.0,0.00017144]
[1767038790406,0.00017144,87534.0,87508.0,0.00017144]
[1767038790407,0.0114391,87522.0,87508.0,0.00017144]
[1767038790613,0.09724,87521.0,87508.0,0.00017144]
[1767038791010,0.09724,87521.0,87498.0,0.05732]
[1767038792005,0.09724,87521.0,87479.0,0.0114447]
[1767038792006,0.17276869,87510.0,87479.0,0.0114447]
[1767038792207,0.00017144,87503.0,87480.0,0.15456]
[1767038792409,0.05732,87502.0,87480.0,0.15456]
[1767038793318,0.011442,87500.0,87480.0,0.15456]
[1767038793511,0.05732,87502.0,87458.0,0.03312239]
[1767038793719,0.0114425,87497.0,87465.0,0.0114466]
[1767038794015,0.17276869,87500.0,87463.0,0.0114468]
[1767038794211,0.17276869,87490.0,87458.0,0.00228683]
[1767038794414,0.00017144,87483.0,87459.0,0.15456]
[1767038794718,0.05749144,87483.0,87460.0,0.0114472]
[1767038795416,0.05749144,87483.0,87459.0,0.15456]
[1767038796016,0.05749144,87483.0,87460.0,0.0114472]
[1767038796518,0.05744144,87483.0,87460.0,0.0114472]
[1767038796909,0.06133464,87518.0,87461.0,0.13216898]
[1767038797208,0.04748447,87548.0,87483.0,0.03083556]
[1767038797408,0.04748447,87548.0,87484.0,0.44648159]
[1767038797610,0.0114365,87542.0,87511.0,0.0114405]
[1767038797818,0.1086765,87542.0,87512.0,0.15468]
[1767038798112,0.00017144,87536.0,87518.0,0.00017144]
[1767038801316,0.00017144,87536.0,87518.0,0.01161114]
[1767038801915,0.00017144,87536.0,87518.0,0.00017144]
[1767038803422,0.00017144,87536.0,87506.0,0.09724]
[1767038803623,0.0114381,87531.0,87501.0,0.15468]
[1767038803821,0.09724,87530.0,87502.0,0.15468]
[1767038804144,0.0114382,87529.0,87502.0,0.15468]
[1767038804426,0.00017144,87524.0,87502.0,0.15468]
[1767038805423,0.00017144,87524.0,87503.0,0.0114415]
[1767038805826,0.00017144,87524.0,87502.0,0.15468]
[1767038807927,0.09724,87530.0,87502.0,0.15468]
[1767038808122,0.05744,87536.0,87512.0,0.0114404]
[1767038808327,0.05744,87536.0,87513.0,0.05744]
[1767038808634,0.0114361,87545.0,87515.0,0.01144]
[1767038808923,0.00017144,87539.0,87524.0,0.0114388]
[1767038809132,0.00017144,87539.0,87528.0,0.0114382]
[1767038809315,0.00017144,87539.0,87523.0,0.05744]
[1767038811131,0.00017144,87539.0,87523.0,0.05144]
[1767038812527,0.01160844,87539.0,87524.0,0.15468]
[1767038812727,0.00017144,87539.0,87524.0,0.15468]
[1767038816030,0.00017144,87539.0,87521.0,0.00017144]
[1767038816330,0.00017144,87539.0,87522.0,0.15468]
[1767038816723,0.0114371,87538.0,87521.0,0.00017144]
[1767038816927,0.00017144,87539.0,87521.0,0.00017144]
[1767038817121,0.0114374,87536.0,87521.0,0.00017144]
[1767038817327,0.1086774,87536.0,87521.0,0.00017144]
[1767038818227,0.1086774,87536.0,87517.0,0.09724]
[1767038821331,0.1086774,87536.0,87515.0,0.0574]
[1767038821939,0.09724,87536.0,87515.0,0.0574]
[1767038822740,0.0114375,87535.0,87515.0,0.0574]
[1767038823037,0.09724,87536.0,87515.0,0.0574]
[1767038823239,0.09724,87536.0,87519.0,0.0114394]
[1767038823435,0.17269682,87530.0,87499.0,0.0114421]
[1767038823635,0.0114384,87528.0,87501.0,0.0114418]
[1767038823936,0.00017144,87523.0,87502.0,0.09724]